Cogmind - Beta 10.2 @@@ ROGUE MODE // 2021.07.11 @ 00:05:09 Player: bryce Result: Destroyed by G-47 Trooper with Particle Gun Performance ------------- Evolutions (3) 1500 Regions Visited (6) 1200 Robots Destroyed (64) 320 Value Destroyed (2368) 2368 Prototype IDs (0) 0 Alien Tech Used (0) 0 Bonus (63) 63 TOTAL SCORE: 5451 Bonus ------- High Alert Combat Kills 63 Cogmind --------- Core Integrity 0/700 Matter 300/300 Energy 86/100 System Corruption 4% Temperature Cool (-68) Movement Core (300) Ox5 Location -7/Storage Parts ------- > --- POWER (2) -------- (None) > --- PROPULSION (4) --- (None) > --- UTILITY (5) ------ Cryofiber Web Large Storage Unit Target Analyzer > --- WEAPON (2) ------- (None) > --- INVENTORY (10) --- Improved Deuterium Engine Large Storage Unit Improved Signal Interpreter Energy Filter Improved Light Armor Plating Peak State ------------ > --- POWER ------------ Improved Deuterium Engine Improved Deuterium Engine > --- PROPULSION ------- Improved Treads Improved Treads Improved Treads Advanced Treads > --- UTILITY ---------- Improved Cooling System Large Storage Unit Target Analyzer Improved Light Armor Plating Improved Shield Generator > --- WEAPON ----------- Arc Projector Improved EM Pulse Cannon > --- INVENTORY -------- Light Nuclear Core Improved Deuterium Engine Light Treads Light Treads Thermal Generator Large Storage Unit Improved Signal Interpreter Hardened Light Armor Plating Arc Projector EM Pulse Cannon [Rating: 42] Favorites ----------- Power Improved Deuterium Engine Engine Improved Deuterium Engine Power Core Light Nuclear Core Propulsion Improved Treads Treads Improved Treads Leg Aluminum Leg Utility Improved Heat Sink Device Improved Heat Sink Storage Large Storage Unit Processor Target Analyzer Protection Hardened Light Armor Plating Weapon Arc Projector Energy Gun Arc Projector Energy Cannon Improved EM Pulse Cannon Ballistic Gun Heavy Assault Rifle Launcher EMP Blaster Build | -11 -10 -10 -9 -8 -7 -7 ------- Run | Scr Mat Min Mat Mat Fac Sto Slots Evolved 6 | . . . 2 2 2 . Power 1 | . . . 1 . . . Propulsion 2 | . . . . 1 1 . Utility 3 | . . . 1 1 1 . Weapon . | . . . . . . . Parts Attached 69 | 5 5 1 14 16 17 11 Power 14 | 1 . . 4 3 4 2 Engine 13 | 1 . . 4 3 4 1 Core 1 | . . . . . . 1 Reactor . | . . . . . . . Propulsion 12 | 2 . . 3 2 1 4 Treads 9 | . . . 2 2 1 4 Leg 3 | 2 . . 1 . . . Wheel . | . . . . . . . Hover . | . . . . . . . Flight . | . . . . . . . Utility 23 | 1 1 . 5 4 9 3 Device 11 | . . . 3 2 5 1 Storage 3 | 1 . . . 1 1 . Processor 1 | . . . . . 1 . Hackware . | . . . . . . . Protection 8 | . 1 . 2 1 2 2 Artifact . | . . . . . . . Weapon 20 | 1 4 1 2 7 3 2 Energy Gun 6 | 1 1 . 1 1 1 1 Energy Cannon 8 | . . . 1 4 2 1 Ballistic Gun 3 | . 1 . . 2 . . Ballistic Cannon . | . . . . . . . Launcher 3 | . 2 1 . . . . Special Weapon . | . . . . . . . Impact Weapon . | . . . . . . . Slashing Weapon . | . . . . . . . Piercing Weapon . | . . . . . . . Special Melee Weapon . | . . . . . . . Unidentified Prototypes . | . . . . . . . Parts Lost 18 | . . . 1 . . 17 Power 3 | . . . . . . 3 Propulsion 7 | . . . . . . 7 Utility 3 | . . . . . . 3 Weapon 5 | . . . 1 . . 4 Highest Loss Streak 13 | . . . 1 . . 13 Average Slot Usage (%) 97 | . 94 100 97 99 99 91 Engine 16 | . 14 14 22 18 15 14 Treads 22 | . . . 11 27 30 24 Leg 4 | . 28 28 10 . . . Device 15 | . . . 15 18 19 14 Storage 7 | . 14 14 1 9 7 7 Processor 2 | . . . . . 2 7 Protection 8 | . 11 14 14 9 7 6 Energy Gun 6 | . 7 14 3 5 6 6 Energy Cannon 7 | . . . 10 9 7 6 Launcher 2 | . 16 14 6 . . . Naked Turns . | . . . . . . . Heaviest Build 63 | 11 18 16 28 42 63 60 Greatest Support 91 | 20 20 20 46 69 91 91 Greatest Overweight (x) 12 | . . . 1 . . 12 Average Overweight (x) . | . . . . . . . Largest Inventory Capacity 10 | 6 6 6 6 6 10 10 Average Capacity 7 | 5 6 6 4 5 9 10 Most Carried 10 | 4 6 6 6 6 10 10 Average Carried 7 | 2 5 5 4 5 8 9 Final Capacity 10 | 6 6 6 4 6 10 10 Final Carried 10 | 4 6 6 4 6 10 5 Class Distribution -------------------- 85% | Mutant 14% | Scavenger-Mutant Dominant Class ---------------- Mutant | -10/Materials Mutant | -10/Mines Mutant | -9/Materials Mutant | -8/Materials Mutant | -7/Factory Mutant | -7/Storage Resources | -11 -10 -10 -9 -8 -7 -7 ----------- Run | Scr Mat Min Mat Mat Fac Sto Matter Collected 973 | 197 23 115 247 166 170 55 Remotely . | . . . . . . . Salvage Created 2671 | . 177 93 445 681 743 532 Parts 157 | . 17 12 27 45 38 18 Haulers Intercepted . | . . . . . . . Recyclers Shooed 2 | . 2 . . . . . Parts Field Recycled . | . . . . . . . Retrieved Matter . | . . . . . . . Parts Self-Destructed . | . . . . . . . Prevented . | . . . . . . . Kills | -11 -10 -10 -9 -8 -7 -7 ------- Run | Scr Mat Min Mat Mat Fac Sto Combat Hostiles Destroyed 50 | . 5 5 9 12 11 8 Guns 7 | . . 3 . 3 . 1 Cannons 23 | . . . 5 7 8 3 AOE 13 | . 5 2 3 . 3 . Classes Destroyed 9 | . 4 . 1 . 4 . Worker 2 | . 2 . . . . . Tunneler 1 | . . . . . 1 . Operator 1 | . . . . . 1 . Watcher 10 | . 1 . 2 4 2 1 Swarmer 14 | . 4 5 1 4 . . Grunt 18 | . 1 . 5 3 5 4 Sentry 14 | . . . 3 5 3 3 Hunter 1 | . . . . . 1 . Programmer 3 | . . . . . 2 1 Best Kill Streak 7 | . 4 7 6 7 4 3 Combat Bots Only 6 | . 3 6 3 5 4 3 Max Kills in Single Turn 3 | . 3 1 1 1 2 1 Gunslinging . | . . . . . . . Exploded 2 | . 2 1 1 . 1 . Melee . | . . . . . . . Uniques/NPCs Destroyed . | . . . . . . . Combat | -11 -10 -10 -9 -8 -7 -7 -------- Run | Scr Mat Min Mat Mat Fac Sto Damage Taken 4309 | . 319 146 270 527 752 2295 Core 852 | . 49 16 21 62 172 532 Absorbed by Shields 887 | . . . 101 208 280 298 Core Remaining (%) 89 | 100 . 74 94 88 . . Volleys Fired 200 | . 16 13 28 35 39 69 Largest 2 | . 2 2 2 2 2 2 Hottest 124 | . 66 73 89 106 124 124 Shots Fired 348 | . 19 15 36 67 74 137 Gun 146 | . 5 7 . 32 34 68 Cannon 169 | . . . 25 35 40 69 Launcher 33 | . 14 8 11 . . . Special . | . . . . . . . Kinetic 2 | . . . . 2 . . Thermal 10 | . . . . 10 . . Explosive . | . . . . . . . Electromagnetic 336 | . 19 15 36 55 74 137 Robot Hit Streak 29 | . 2 3 13 12 29 18 Robot Miss Streak 3 | . 2 2 2 2 3 1 Penetration Max . | . . . . . . . Secondary Targets . | . . . . . . . Shots Hit Robots 207 | . 6 4 22 45 59 71 Core Hits 114 | . 14 7 15 21 31 26 Critical Hits 5 | . . . . . 2 3 Critical Kills . | . . . . . . . Critical Parts Destroyed 5 | . . . . . 2 3 Melee Attacks . | . . . . . . . Impact . | . . . . . . . Slashing . | . . . . . . . Piercing . | . . . . . . . Sneak Attacks . | . . . . . . . Combat Hostiles . | . . . . . . . Follow-up Attacks . | . . . . . . . Damage Inflicted 5406 | . 735 123 794 928 1773 1053 Guns 990 | . 24 43 . 371 260 292 Cannons 2495 | . . . 477 522 804 692 Explosions 1897 | . 711 80 317 35 709 45 Melee . | . . . . . . . Ramming 24 | . . . . . . 24 Kinetic 16 | . . . . 16 . . Thermal 1167 | . 243 . 93 77 709 45 Explosive . | . . . . . . . Electromagnetic 4199 | . 492 123 701 835 1064 984 Impact . | . . . . . . . Slashing . | . . . . . . . Piercing . | . . . . . . . Highest Corruption 4 | . . . . . . 4 Average Corruption 1 | . . . . . . 1 Corruption Purged . | . . . . . . . Effects 7 | . . . . . . 7 Heat Flow Errors 1 | . . . . . . 1 Energy Discharges 1 | . . . . . . 1 Data Loss (minor) 4 | . . . . . . 4 Targeting Errors 1 | . . . . . . 1 Overload Shots . | . . . . . . . Overflow Damage 260 | . 106 . 26 16 103 9 Projectiles 93 | . . . 26 16 42 9 Explosions 167 | . 106 . . . 61 . Melee . | . . . . . . . Knockbacks 1 | . . . . . . 1 Impact 1 | . . . . . . 1 Kinetic . | . . . . . . . Secondary . | . . . . . . . Self-Inflicted Damage 271 | . 12 . 9 33 206 11 Shots 8 | . 1 . 1 2 3 1 Rammed 11 | . . . . . . 11 Targets Rammed 11 | . . . . . . 11 Kicked . | . . . . . . . Crushed . | . . . . . . . Highest Temperature 255 | . 30 12 120 222 214 255 Average Temperature 59 | . 12 7 30 58 78 88 Received Heat Transfer 1488 | . 48 . 100 144 222 974 Effects 1 | . . . . . . 1 Energy Bleed 1 | . . . . . . 1 Siege Activations . | . . . . . . . Robots Corrupted 9 | . . . 1 3 1 4 Combat Hostiles 7 | . . . 1 2 . 4 Parts Fried 32 | . . . 6 6 9 11 Impact Corruptions . | . . . . . . . Robots Melted . | . . . . . . . Combat Hostiles . | . . . . . . . Parts Melted . | . . . . . . . Heat Transferred 1075 | . 300 . 150 175 400 50 Parts Sabotaged . | . . . . . . . Parts Stolen . | . . . . . . . Parts Stripped . | . . . . . . . Power Chain Reactions 11 | . 3 . 3 . 4 1 Missiles Intercepted . | . . . . . . . Alert | -11 -10 -10 -9 -8 -7 -7 ------- Run | Scr Mat Min Mat Mat Fac Sto Peak Influence 478 | . 297 280 478 471 416 379 Initial 214 | . . 115 109 123 214 170 Average 260 | . 88 203 285 362 251 246 Maximum Alert Level 2 | . 1 1 2 2 2 1 Low Security (%) 22 | 100 86 6 31 4 22 21 Level 1 65 | . 13 93 45 46 75 78 Level 2 12 | . . . 23 48 2 . Level 3 . | . . . . . . . Level 4 . | . . . . . . . Level 5 . | . . . . . . . High Security . | . . . . . . . Max Security . | . . . . . . . Squads Dispatched 6 | . 2 . . . 2 2 Investigation 2 | . 1 . . . . 1 Extermination 3 | . . . . . 2 1 Reinforcement 1 | . 1 . . . . . Assault . | . . . . . . . Garrison . | . . . . . . . Intercept . | . . . . . . . Construction Impeded . | . . . . . . . Haulers Reinforced . | . . . . . . . Stealth | -11 -10 -10 -9 -8 -7 -7 --------- Run | Scr Mat Min Mat Mat Fac Sto Distress Signals 10 | . 1 . 2 5 . 2 Communications Jammed . | . . . . . . . Distress Signals . | . . . . . . . Times Spotted 104 | . 14 5 15 25 15 30 Peak Tracking Total 12 | . 7 3 4 7 4 12 Tactical Retreats 17 | . 3 . 2 6 . 6 Traps | -11 -10 -10 -9 -8 -7 -7 ------- Run | Scr Mat Min Mat Mat Fac Sto Traps Triggered 4 | . 1 . . 2 . 1 Indirectly 1 | . 1 . . . . . Trap Hack Attempts . | . . . . . . . Triggered . | . . . . . . . Disarmed . | . . . . . . . Reprogrammed . | . . . . . . . Reused . | . . . . . . . Traps Extracted . | . . . . . . . Installed . | . . . . . . . Triggered 2 | . . . . 1 . 1 Machines | -11 -10 -10 -9 -8 -7 -7 ---------- Run | Scr Mat Min Mat Mat Fac Sto Machines Disabled 26 | . 5 3 1 3 9 5 Max in Single Turn 6 | . 3 1 1 2 6 1 Machines Sabotaged . | . . . . . . . Garrisons Compromised . | . . . . . . . Overloaded Fab Kills . | . . . . . . . Fab Network Shutdowns . | . . . . . . . Hacking | -11 -10 -10 -9 -8 -7 -7 --------- Run | Scr Mat Min Mat Mat Fac Sto Machines Accessed 8 | . . . 2 1 2 3 Terminals 3 | . . . 1 . 1 1 Fabricators . | . . . . . . . Repair Stations 4 | . . . 1 1 . 2 Recycling Units . | . . . . . . . Scanalyzers 1 | . . . . . 1 . Garrison Access . | . . . . . . . Total Hacks 19 | . . . 6 3 3 7 Successful 10 | . . . 3 2 1 4 Failed 9 | . . . 3 1 2 3 Catastrophic 2 | . . . 1 . . 1 Database Lockouts . | . . . . . . . Manual 2 | . . . 1 . . 1 Terminals 8 | . . . 4 . 2 2 Fabricators . | . . . . . . . Repair Stations 10 | . . . 2 3 . 5 Recycling Units . | . . . . . . . Scanalyzers 1 | . . . . . 1 . Garrison Access . | . . . . . . . Terminal Hacks 2 | . . . 1 . 1 . Record 1 | . . . . . 1 . Recall Reinforcements 1 | . . . 1 . . . Fabricator Hacks . | . . . . . . . Repair Station Hacks 8 | . . . 2 2 . 4 Scan Component 5 | . . . 1 1 . 3 Repair 3 | . . . 1 1 . 1 Recycling Unit Hacks . | . . . . . . . Scanalyzer . | . . . . . . . Garrison Access Hacks . | . . . . . . . Unauthorized Hacks . | . . . . . . . Terminals . | . . . . . . . Fabricators . | . . . . . . . Repair Stations . | . . . . . . . Recycling Units . | . . . . . . . Scanalyzers . | . . . . . . . Garrison Access . | . . . . . . . Data Cores Recovered 1 | . . . . . 1 . Used 1 | . . . . . 1 . Hacking Detections 5 | . . . 1 . 1 3 Full Trace Events 1 | . . . . . . 1 Feedback Events . | . . . . . . . Feedback Blocked . | . . . . . . . Robot Schematics Acquired . | . . . . . . . Robots Built . | . . . . . . . Matter . | . . . . . . . Time . | . . . . . . . Total Robot Build Rating . | . . . . . . . Part Schematics Acquired . | . . . . . . . Parts Built . | . . . . . . . Matter . | . . . . . . . Time . | . . . . . . . Total Part Build Rating . | . . . . . . . Parts Repaired 3 | . . . 1 1 . 1 Time 80 | . . . 32 32 . 16 Parts Recycled . | . . . . . . . Recycled Matter . | . . . . . . . Retrieved Matter . | . . . . . . . Retrieved Components . | . . . . . . . Parts Scanalyzed . | . . . . . . . Part Schematics Acquired . | . . . . . . . Parts Damaged . | . . . . . . . Bothacking | -11 -10 -10 -9 -8 -7 -7 ------------ Run | Scr Mat Min Mat Mat Fac Sto Used RIF Installer . | . . . . . . . Robots Hacked . | . . . . . . . Non-combat . | . . . . . . . Combat . | . . . . . . . Robot Hacks Applied . | . . . . . . . Relay Couplers Released . | . . . . . . . Robots Rewired . | . . . . . . . Allies Hacked . | . . . . . . . Hacks Repelled . | . . . . . . . Allies | -11 -10 -10 -9 -8 -7 -7 -------- Run | Scr Mat Min Mat Mat Fac Sto Total Allies . | . . . . . . . Largest Group . | . . . . . . . Highest-Rated Group . | . . . . . . . Highest-Rated Ally . | . . . . . . . Total Orders . | . . . . . . . Ally Attacks . | . . . . . . . Total Damage . | . . . . . . . Kills . | . . . . . . . Allies Corrupted . | . . . . . . . Allies Melted . | . . . . . . . Intel | -11 -10 -10 -9 -8 -7 -7 ------- Run | Scr Mat Min Mat Mat Fac Sto Robot Analysis Total . | . . . . . . . Derelict Logs Recovered . | . . . . . . . Drone Launches . | . . . . . . . Drone Recoveries . | . . . . . . . Exploration | -11 -10 -10 -9 -8 -7 -7 ------------- Run | Scr Mat Min Mat Mat Fac Sto Turns Passed 4004 | 57 157 298 455 711 1460 866 Spaces Moved 2061 | 40 90 219 209 348 820 335 Core 7 | 6 . . . . . 1 Treads 1605 | . . . 103 348 820 334 Legs 449 | 34 90 219 106 . . . Wheels . | . . . . . . . Hover . | . . . . . . . Flight . | . . . . . . . Fastest Speed 50 | 50 120 120 150 155 156 155 Average Speed 150 | 109 120 120 155 156 156 159 Slowest Speed 650 | 120 120 120 180 160 156 650 Overloaded Moves . | . . . . . . . Propulsion Burnouts . | . . . . . . . Robots Hopped . | . . . . . . . Cave-ins Triggered . | . . . . . . . Exploration Rate (%) 34 | 4 32 50 23 39 23 70 Regions Visited 6 Branch Regions 2 Pre-discovered Areas . | . . . . . . . Known Exits Taken . | . . . . . . . Unknown Exits Taken 6 | 1 1 1 1 1 1 . Scrap Searched 2 | . . 2 . . . . Spaces Dug . | . . . . . . . Terrain Destroyed 172 | . 49 . 11 . 103 9 Melee . | . . . . . . . Projectile . | . . . . . . . AOE 172 | . 49 . 11 . 103 9 Terrain Rammed . | . . . . . . . Walls Destroyed . | . . . . . . . Machines Disabled . | . . . . . . . Actions | -11 -10 -10 -9 -8 -7 -7 --------- Run | Scr Mat Min Mat Mat Fac Sto Total 2621 | 52 120 239 307 449 931 523 Wait 202 | . 4 5 37 34 35 87 Move 2055 | 39 89 218 208 347 819 335 Hop . | . . . . . . . Pick Up 34 | 8 3 1 7 5 6 4 Fast Attach 18 | 1 2 . 5 6 2 2 Attach 18 | 4 2 . 2 2 2 6 Detach 4 | . 2 . . . 2 . Swap 33 | . 1 1 7 8 13 3 Drop 45 | . 1 1 13 12 13 5 Fire 200 | . 16 13 28 35 39 69 Melee . | . . . . . . . Ram 1 | . . . . . . 1 Kick . | . . . . . . . Crush 10 | . . . . . . 10 Escape Stasis . | . . . . . . . Rewire 1 | . . . . . . 1 Trap . | . . . . . . . Miscellaneous . | . . . . . . . Route ------- -11/Scrapyard -10/Materials -10/Mines -9/Materials -8/Materials -7/Factory -7/Storage History --------- Turn | Location | Event 19 | -11/Scrapyard | Discovered new exit (range 15) 58 | -11/Scrapyard | Entered Materials 196 | -10/Materials | Discovered new exit (range 12) 215 | -10/Materials | Entered Mines 315 | -10/Mines | Build established: Mutant 379 | -10/Mines | Found a hidden stash of uninstalled traps 494 | -10/Mines | Discovered new exit (range 10) 513 | -10/Mines | Entered Materials 513 | -9/Materials | Evolved 2 slots: Power x1, Utility x1 858 | -9/Materials | Discovered new exit (range 12) 919 | -9/Materials | Repaired Shield Generator 968 | -9/Materials | Entered another Materials area 968 | -8/Materials | Evolved 2 slots: Propulsion x1, Utility x1 1177 | -8/Materials | Repaired Lgt. EM Pulse Cannon 1612 | -8/Materials | Discovered new exit (range 16) 1679 | -8/Materials | Entered Factory 1679 | -7/Factory | Evolved 2 slots: Propulsion x1, Utility x1 3100 | -7/Factory | Discovered new exit (range 15) 3139 | -7/Factory | Entered Storage 3395 | -7/Storage | Repaired Imp. Treads 3847 | -7/Storage | Build established: Scavenger-Mutant 3967 | -7/Storage | Core integrity fell below 50% 4003 | -7/Storage | Core integrity fell below 20% 4005 | -7/Storage | Destroyed by G-47 Trooper with Particle Gun Last Messages --------------- 03937_ Imp. Medium Armor Plating destroyed. 03939_ Slammed into G-47 Trooper. 03940_ Imp. Cooling System destroyed. 03952_ Slammed into G-47 Trooper. 03956_ Imp. Treads destroyed. 03956_ Slammed into G-47 Trooper. 03956_ G-47 Trooper knocked back. 03958_ Slammed into G-47 Trooper. 03962_ Lgt. Treads destroyed. 03964_ Imp. Deuterium Engine destroyed. 03970_ W-25 Informer sends out distress signal. 03973_ ALERT: Rogue bot located, Programmers report to Storage Zone 3Y. 03974_ Lgt. Nuclear Core destroyed. 03996_ Slammed into Y-54 Guardian. 03997_ P-60 Hacker resets G-47 Trooper, system corruption cleaned. 03998_ Slammed into Y-54 Guardian. 04002_ System corrupted: Energy discharge (-23). 04002_ Lgt. Treads destroyed. 04003_ Slammed into Y-54 Guardian. 04003_ Destabilizing: System corrupted (+2). Map ----- +----------------------------------------------------+ | | | | | | | | | | | | | | | | | ?????????????????????????????????????? | | ?????????????????????????????????????? | | ?????????????????????????????????????? | | ?????????????????????????????????????? | | ?????????????????????????????????????? | | ?????????????????????????????????????? | | ?????????????????????????????????????? | | ?????????????????????????????????????? | | ?????????????????????????????????????? | | ??????????##########?????????????????? | | ??????????# ##????????????????? | | ????????### """p #?#####??????????? | | ????????#"" """ ##?"""""#?????????? | | ????????#"" """ ###""Y""#?????????? | | ????????#"T gY ## #???????? | | ????????#"" gg""" ## """ #???????? | | ????????#""gg """ ## """ #???????? | | ????????### g@"""g ## """ #???????? | | ??????????# Y ## #???????? | | ????????#######Y##### """ +???????? | | ???# ^ / """ #???????? | | ???# ^ #### """ #???????? | | ???# #??#% #???????? | | ???# ########+##??#/########???????? | | ????????????????????#%#??????????????? | | ????????????????????#%#??????????????? | | ????????????????????#%#??????????????# | | ????????????????????#%#???????????? | | ????????????????????# #??????????? #? | | ????????????????????# #?????????? ??? | | ????????????????????# #????????? ???? | | ????????????????????# #########+#####? | | ????????????????????# %" #? | | ????????????????????# ##% "" """ #? | | ????????????????????# ##!""" """??? | | ????????????????????# ##!""" """ ?? | | ????????????????????#### ## """ """ ## | | ???????????????????????# ## """ """ # | | ???????????????????????# ## #? | | ???????????????????????# ## #? | | ???????????????????????# ##+#########? | | ????????????????# ?????# #???# """ | +----------------------------------------------------+ Best States ------------- Heat Dissipation 61 Energy Generation 27 Energy Capacity 480 Matter Stores 300 Matter Capacity 300 Sight Range 16 Terrain Scan Density 10 Base Temperature (-) 100 Armor Coverage 300 Weapon Shielding 33 Evasion (%) 40 Target Analysis 5 Recoil Reduction 4 Item Schematics ----------------- None Robot Schematics ------------------ None Fabricated ------------ Nothing Alien Tech Used ----------------- None Achievements -------------- None Challenges ------------ None Game ------ Seed BoreTrapDevice Manual? 0 Play Time 00:56:21 Cumulative 15.5 hours Start 2021.07.10 @ 23:10:20 End 2021.07.11 @ 00:05:09 Sessions 1 Manual Loads 0 Difficulty Rogue Special Mode None Game No. 11 Rogue 11 Adventurer 0 Explorer 0 Win Type - Total 0 Types 0/0/0/0/0/0/0/0/0 Lore% 18 Gallery% 21 Achievement% 18 Wizard Run 0 Options --------- ASCII 0 Keyboard 0 Movement Mouse Keybinds 0 Fullscreen 1 Font 24/Smallcaps Map View 76x50 Tactical HUD 1 Map Filters NONE Filters NONE Steam 0 RUN: 6397767d-21ba-4268-afd2-6d8390b9f222